[Event "*** Titled Tuesday Blitz"]
[Site "Chess.com"]
[Date "2021.02.02"]
[Round "8"]
[White "LucaBrasi1968"]
[Black "Sergienko_Sergey"]
[Result "1-0"]
[WhiteElo "2514"]
[BlackElo "2384"]
[TimeControl "180+1"]
[EndTime "11:31:31 PST"]
[Termination "LucaBrasi1968 won by resignation"]

1. e4 {[%clk 0:03:00.9]} 1... c5 {[%clk 0:02:59.3]} 2. c3 {[%clk 0:03:00.8]}
2... d5 {[%clk 0:02:58.2]} 3. exd5 {[%clk 0:03:00.1]} 3... Qxd5 {[%clk
0:02:58.1]} 4. d4 {[%clk 0:02:59.6]} 4... Nf6 {[%clk 0:02:57.8]} 5. Nf3 {[%clk
0:02:59.1]} 5... Bg4 {[%clk 0:02:57.1]} 6. Be2 {[%clk 0:02:59]} 6... e6 {[%clk
0:02:56.3]} 7. Be3 {[%clk 0:02:58.6]} 7... cxd4 {[%clk 0:02:55.5]} 8. cxd4
{[%clk 0:02:58.9]} 8... Be7 {[%clk 0:02:55.2]} 9. Nc3 {[%clk 0:02:59.2]} 9...
Qd6 {[%clk 0:02:54.9]} 10. Qb3 {[%clk 0:02:57.8]} 10... Nc6 {[%clk 0:02:47.8]}
11. h3 {[%clk 0:02:53.7]} 11... Bh5 {[%clk 0:02:46.5]} 12. O-O {[%clk
0:02:53.5]} 12... O-O {[%clk 0:02:45.7]} 13. Rfd1 {[%clk 0:02:53.6]} 13... Rfd8
{[%clk 0:02:35.6]} 14. Rac1 {[%clk 0:02:49.1]} 14... Qb4 {[%clk 0:02:27.1]} 15.
Qxb4 {[%clk 0:02:40.8]} 15... Nxb4 {[%clk 0:02:26.8]} 16. g4 {[%clk 0:02:39.9]}
16... Bg6 {[%clk 0:02:25.8]} 17. Ne5 {[%clk 0:02:39.5]} 17... Nbd5 {[%clk
0:02:07.6]} 18. Nxg6 {[%clk 0:02:37.8]} 18... hxg6 {[%clk 0:02:06.7]} 19. Bf3
{[%clk 0:02:27.6]} 19... Nxe3 {[%clk 0:01:27.5]} 20. fxe3 {[%clk 0:02:27]} 20...
Rd7 {[%clk 0:01:27.4]} 21. Kf2 {[%clk 0:02:18.6]} 21... Rad8 {[%clk 0:01:25.8]}
22. Ke2 {[%clk 0:02:18.6]} 22... g5 {[%clk 0:01:17.4]} 23. a3 {[%clk 0:02:13.6]}
23... g6 {[%clk 0:01:16.6]} 24. b4 {[%clk 0:02:09.9]} 24... Kg7 {[%clk
0:01:15.7]} 25. Na4 {[%clk 0:02:08.2]} 25... b6 {[%clk 0:00:59.6]} 26. Bc6
{[%clk 0:02:03.8]} 26... Rc7 {[%clk 0:00:55.5]} 27. Bf3 {[%clk 0:02:00.3]} 27...
Rdc8 {[%clk 0:00:52.8]} 28. Kd2 {[%clk 0:01:58.4]} 28... Ne8 {[%clk 0:00:44.1]}
29. Be2 {[%clk 0:01:48.7]} 29... Nd6 {[%clk 0:00:41.3]} 30. Bd3 {[%clk
0:01:48.5]} 30... f5 {[%clk 0:00:34.7]} 31. Rxc7 {[%clk 0:01:45.3]} 31... Rxc7
{[%clk 0:00:34.2]} 32. Rc1 {[%clk 0:01:45.6]} 32... Rxc1 {[%clk 0:00:33.3]} 33.
Kxc1 {[%clk 0:01:45.5]} 33... Kf6 {[%clk 0:00:32.5]} 34. Kd2 {[%clk 0:01:44.3]}
34... Bd8 {[%clk 0:00:22.5]} 35. Nc3 {[%clk 0:01:40]} 35... Bc7 {[%clk
0:00:21.7]} 36. a4 {[%clk 0:01:28.7]} 36... Kf7 {[%clk 0:00:19.3]} 37. e4 {[%clk
0:01:26.7]} 37... fxe4 {[%clk 0:00:17.6]} 38. Bxe4 {[%clk 0:01:23.9]} 38... Kf6
{[%clk 0:00:16.4]} 39. Bd3 {[%clk 0:01:21.7]} 39... Bd8 {[%clk 0:00:15.4]} 40.
Ke3 {[%clk 0:01:17.9]} 40... Be7 {[%clk 0:00:15.2]} 41. b5 {[%clk 0:01:16.6]}
41... Ne8 {[%clk 0:00:14.1]} 42. Ne4+ {[%clk 0:01:11.5]} 42... Kf7 {[%clk
0:00:12.3]} 43. Bc4 {[%clk 0:01:11.6]} 43... Nc7 {[%clk 0:00:12]} 44. Nc3 {[%clk
0:01:10.8]} 44... Bd6 {[%clk 0:00:10.4]} 45. Ke4 {[%clk 0:01:10.2]} 45... Bf4
{[%clk 0:00:10.2]} 46. d5 {[%clk 0:01:06.4]} 46... exd5+ {[%clk 0:00:09.4]} 47.
Bxd5+ {[%clk 0:01:05.9]} 47... Ke7 {[%clk 0:00:09.3]} 48. Bc6 {[%clk 0:01:05]}
48... Kd6 {[%clk 0:00:09]} 49. Ne2 {[%clk 0:00:37.5]} 49... Kc5 {[%clk
0:00:08.5]} 50. h4 {[%clk 0:00:35.9]} 50... Bd2 {[%clk 0:00:07]} 51. h5 {[%clk
0:00:35.4]} 51... gxh5 {[%clk 0:00:06.4]} 52. gxh5 {[%clk 0:00:35.8]} 52... g4
{[%clk 0:00:06.3]} 53. Kf5 {[%clk 0:00:24.8]} 53... Nd5 {[%clk 0:00:04.5]} 54.
Kxg4 {[%clk 0:00:20.6]} 54... Nf6+ {[%clk 0:00:03.6]} 55. Kh4 {[%clk 0:00:19.9]}
55... Nxh5 {[%clk 0:00:04]} 56. Kxh5 {[%clk 0:00:19.9]} 56... Kb4 {[%clk
0:00:04.5]} 57. Kg4 {[%clk 0:00:19.4]} 57... Kxa4 {[%clk 0:00:04.6]} 58. Kf5
{[%clk 0:00:19.8]} 58... Ka5 {[%clk 0:00:04.7]} 59. Ke4 {[%clk 0:00:20]} 59...
a6 {[%clk 0:00:04.7]} 60. Kd3 {[%clk 0:00:19.8]} 60... Bb4 {[%clk 0:00:03.1]}
61. Nd4 {[%clk 0:00:18.1]} 61... axb5 {[%clk 0:00:03.3]} 62. Nxb5 {[%clk
0:00:18.3]} 62... Bc5 {[%clk 0:00:03.4]} 63. Kc4 {[%clk 0:00:18.3]} 63... Ka4
{[%clk 0:00:03.5]} 64. Bd7 {[%clk 0:00:15.9]} 64... Ka5 {[%clk 0:00:03.6]} 65.
Bf5 {[%clk 0:00:14.8]} 65... Ka4 {[%clk 0:00:03.5]} 66. Bc2+ {[%clk 0:00:14.6]}
66... Ka5 {[%clk 0:00:03.6]} 67. Bb3 {[%clk 0:00:15.2]} 67... Bb4 {[%clk
0:00:02.8]} 68. Nd4 {[%clk 0:00:13.1]} 68... Bf8 {[%clk 0:00:03.1]} 69. Nc6+
{[%clk 0:00:07.8]} 69... Ka6 {[%clk 0:00:02.4]} 70. Ba4 {[%clk 0:00:08.3]} 70...
b5+ {[%clk 0:00:02.5]} 71. Bxb5+ {[%clk 0:00:09.2]} 71... Kb6 {[%clk 0:00:03]}
72. Nd4 {[%clk 0:00:08.4]} 72... Bh6 {[%clk 0:00:03.3]} 73. Nf5 {[%clk
0:00:08.4]} 73... Ka5 {[%clk 0:00:03]} 74. Nxh6 {[%clk 0:00:08.1]} 1-0

[Event "*** Titled Tuesday Blitz"]
[Site "Chess.com"]
[Date "2021.02.02"]
[Round "8"]
[White "annacramling"]
[Black "ybruned"]
[Result "1-0"]
[WhiteElo "2121"]
[BlackElo "2298"]
[TimeControl "180+1"]
[EndTime "11:31:36 PST"]
[Termination "annacramling won by resignation"]

1. d4 {[%clk 0:03:00.9]} 1... Nf6 {[%clk 0:02:58.8]} 2. c4 {[%clk 0:02:57.8]}
2... e6 {[%clk 0:02:58]} 3. Nc3 {[%clk 0:02:57.3]} 3... Bb4 {[%clk 0:02:57]} 4.
Qc2 {[%clk 0:02:57.7]} 4... O-O {[%clk 0:02:54.5]} 5. e4 {[%clk 0:02:57.8]} 5...
d5 {[%clk 0:02:54.5]} 6. e5 {[%clk 0:02:52]} 6... Ne4 {[%clk 0:02:53.5]} 7. cxd5
{[%clk 0:02:43.1]} 7... exd5 {[%clk 0:02:28.2]} 8. Bd3 {[%clk 0:02:42.2]} 8...
c5 {[%clk 0:02:23.4]} 9. Nf3 {[%clk 0:02:39.9]} 9... cxd4 {[%clk 0:01:44.3]} 10.
Nxd4 {[%clk 0:02:40.8]} 10... Nc6 {[%clk 0:01:08.4]} 11. Nxc6 {[%clk 0:02:37.1]}
11... bxc6 {[%clk 0:01:07.6]} 12. O-O {[%clk 0:02:37.3]} 12... Bxc3 {[%clk
0:00:43]} 13. bxc3 {[%clk 0:02:36.5]} 13... Qh4 {[%clk 0:00:35.6]} 14. c4 {[%clk
0:02:05.3]} 14... Be6 {[%clk 0:00:29.9]} 15. g3 {[%clk 0:01:56.1]} 15... Qh5
{[%clk 0:00:18.5]} 16. Bxe4 {[%clk 0:01:45.1]} 16... dxe4 {[%clk 0:00:12.8]} 17.
Qxe4 {[%clk 0:01:46]} 17... Qg4 {[%clk 0:00:12.3]} 18. Qxg4 {[%clk 0:01:42.9]}
18... Bxg4 {[%clk 0:00:12.2]} 19. Ba3 {[%clk 0:01:38.2]} 19... Rfd8 {[%clk
0:00:10.1]} 20. Bd6 {[%clk 0:01:37.7]} 20... Bf3 {[%clk 0:00:08.8]} 21. c5
{[%clk 0:01:29.9]} 21... Rd7 {[%clk 0:00:04.6]} 22. Rab1 {[%clk 0:01:27.5]}
22... g6 {[%clk 0:00:01.7]} 23. Rfe1 {[%clk 0:01:19.8]} 23... Kg7 {[%clk
0:00:02.5]} 24. Re3 {[%clk 0:01:18.5]} 24... Bd5 {[%clk 0:00:02.6]} 25. Rb2
{[%clk 0:01:18.6]} 25... Re8 {[%clk 0:00:02.6]} 26. Ra3 {[%clk 0:00:51.4]} 26...
h5 {[%clk 0:00:03.1]} 27. h4 {[%clk 0:00:50.7]} 27... Re6 {[%clk 0:00:03]} 28.
Rb8 {[%clk 0:00:32.6]} 28... f6 {[%clk 0:00:03.1]} 29. f4 {[%clk 0:00:25.9]}
29... fxe5 {[%clk 0:00:03.4]} 30. Bxe5+ {[%clk 0:00:26.3]} 30... Kf7 {[%clk
0:00:03.8]} 31. Ra8 {[%clk 0:00:24.5]} 31... Ree7 {[%clk 0:00:03.1]} 32. Bd6
{[%clk 0:00:21.9]} 32... Re1+ {[%clk 0:00:02.1]} 33. Kf2 {[%clk 0:00:22.6]}
33... Rc1 {[%clk 0:00:01.4]} 34. R3xa7 {[%clk 0:00:22.7]} 34... Rxa7 {[%clk
0:00:01.3]} 35. Rxa7+ {[%clk 0:00:22.6]} 35... Ke6 {[%clk 0:00:01.7]} 36. Re7+
{[%clk 0:00:22.7]} 36... Kf5 {[%clk 0:00:02.1]} 37. Re5+ {[%clk 0:00:19.4]}
37... Kg4 {[%clk 0:00:01.3]} 38. Rg5+ {[%clk 0:00:18.9]} 38... Kh3 {[%clk
0:00:01]} 39. Rxg6 {[%clk 0:00:17.8]} 39... Rc2+ {[%clk 0:00:01.2]} 40. Ke3
{[%clk 0:00:16.8]} 40... Rxa2 {[%clk 0:00:01.3]} 41. f5 {[%clk 0:00:15.6]} 41...
Ra3+ {[%clk 0:00:01.3]} 42. Kd4 {[%clk 0:00:15.6]} 42... Ra4+ {[%clk 0:00:01.4]}
43. Ke5 {[%clk 0:00:14.8]} 43... Re4+ {[%clk 0:00:01.8]} 44. Kf6 {[%clk
0:00:15.2]} 44... Rg4 {[%clk 0:00:02]} 45. Rxg4 {[%clk 0:00:14.1]} 45... Kxg4
{[%clk 0:00:01.5]} 46. Bf4 {[%clk 0:00:06.3]} 46... Be4 {[%clk 0:00:02.3]} 47.
Ke5 {[%clk 0:00:03.2]} 47... Bxf5 {[%clk 0:00:03.1]} 48. Kd6 {[%clk 0:00:03.3]}
48... Bc2 {[%clk 0:00:03.9]} 49. Kxc6 {[%clk 0:00:02.8]} 49... Ba4+ {[%clk
0:00:04.6]} 50. Kd6 {[%clk 0:00:02.8]} 50... Kf5 {[%clk 0:00:04.8]} 51. c6
{[%clk 0:00:03.1]} 51... Bxc6 {[%clk 0:00:04.3]} 52. Kxc6 {[%clk 0:00:03.7]}
52... Kg6 {[%clk 0:00:05.1]} 53. Kd5 {[%clk 0:00:04]} 53... Kf5 {[%clk
0:00:05.3]} 54. Kd4 {[%clk 0:00:04.3]} 54... Ke6 {[%clk 0:00:03.5]} 55. Ke4
{[%clk 0:00:04.8]} 55... Kf6 {[%clk 0:00:04.2]} 56. Bg5+ {[%clk 0:00:05.4]}
56... Kg6 {[%clk 0:00:03.8]} 57. Ke5 {[%clk 0:00:05.4]} 57... Kf7 {[%clk
0:00:02.3]} 58. Kf5 {[%clk 0:00:05.5]} 58... Kg7 {[%clk 0:00:02.7]} 59. Bf6+
{[%clk 0:00:05.9]} 59... Kh6 {[%clk 0:00:02.8]} 60. Bd8 {[%clk 0:00:03.4]} 60...
Kh7 {[%clk 0:00:02.6]} 61. Kg5 {[%clk 0:00:04]} 61... Kg7 {[%clk 0:00:02.8]} 62.
Kxh5 {[%clk 0:00:04.7]} 62... Kh7 {[%clk 0:00:03.2]} 63. Kg5 {[%clk 0:00:05.6]}
63... Kg7 {[%clk 0:00:03.2]} 64. h5 {[%clk 0:00:06.5]} 64... Kh7 {[%clk
0:00:02.8]} 65. g4 {[%clk 0:00:07.4]} 65... Kg7 {[%clk 0:00:01.3]} 66. Kf5
{[%clk 0:00:08.3]} 66... Kh6 {[%clk 0:00:01.1]} 67. g5+ {[%clk 0:00:09.2]} 67...
Kxh5 {[%clk 0:00:01.1]} 68. g6 {[%clk 0:00:09.3]} 1-0

[Event "*** Titled Tuesday Blitz"]
[Site "Chess.com"]
[Date "2021.02.02"]
[Round "8"]
[White "ozates"]
[Black "horripile"]
[Result "1/2-1/2"]
[WhiteElo "2504"]
[BlackElo "2709"]
[TimeControl "180+1"]
[EndTime "11:31:42 PST"]
[Termination "Game drawn - insufficient material"]

1. e4 {[%clk 0:03:00.9]} 1... c5 {[%clk 0:02:59.7]} 2. Nf3 {[%clk 0:03:01.2]}
2... Nc6 {[%clk 0:02:59.9]} 3. Bb5 {[%clk 0:03:01.3]} 3... e6 {[%clk 0:03:00]}
4. Bxc6 {[%clk 0:03:01.3]} 4... bxc6 {[%clk 0:03:00.9]} 5. b3 {[%clk 0:03:01.2]}
5... Ne7 {[%clk 0:03:01.1]} 6. Bb2 {[%clk 0:03:00.9]} 6... Ng6 {[%clk
0:03:00.8]} 7. e5 {[%clk 0:03:01.2]} 7... Be7 {[%clk 0:03:00.4]} 8. O-O {[%clk
0:03:01]} 8... O-O {[%clk 0:02:59.7]} 9. Re1 {[%clk 0:02:52.1]} 9... f6 {[%clk
0:02:58.4]} 10. Na3 {[%clk 0:02:38.6]} 10... fxe5 {[%clk 0:02:56.7]} 11. Nxe5
{[%clk 0:02:38.7]} 11... Nxe5 {[%clk 0:02:56.6]} 12. Bxe5 {[%clk 0:02:38.2]}
12... d6 {[%clk 0:02:57]} 13. Bg3 {[%clk 0:02:37.4]} 13... e5 {[%clk 0:02:57.1]}
14. Nc4 {[%clk 0:02:35.9]} 14... Be6 {[%clk 0:02:49.5]} 15. Qe2 {[%clk
0:02:33.7]} 15... Qd7 {[%clk 0:02:35.9]} 16. Rad1 {[%clk 0:02:28.1]} 16... Rae8
{[%clk 0:02:32.4]} 17. c3 {[%clk 0:02:25.5]} 17... Bg4 {[%clk 0:02:26.8]} 18. f3
{[%clk 0:02:24.9]} 18... Bf5 {[%clk 0:02:26.9]} 19. Ne3 {[%clk 0:02:22.5]} 19...
Bg6 {[%clk 0:02:25.2]} 20. Qa6 {[%clk 0:02:06.2]} 20... Bd8 {[%clk 0:02:20.6]}
21. Nc4 {[%clk 0:01:58.8]} 21... Re6 {[%clk 0:02:04.2]} 22. d4 {[%clk
0:01:44.5]} 22... exd4 {[%clk 0:01:49.5]} 23. Rxe6 {[%clk 0:01:41.8]} 23... Qxe6
{[%clk 0:01:49.2]} 24. Qxc6 {[%clk 0:01:16.8]} 24... dxc3 {[%clk 0:01:25.8]} 25.
Re1 {[%clk 0:01:15.4]} 25... Qf6 {[%clk 0:01:20.8]} 26. Bxd6 {[%clk 0:01:03.7]}
26... c2 {[%clk 0:01:14.5]} 27. Qd5+ {[%clk 0:00:54.9]} 27... Bf7 {[%clk
0:01:11.4]} 28. Qd2 {[%clk 0:00:50.7]} 28... Bxc4 {[%clk 0:00:51.9]} 29. Bxf8
{[%clk 0:00:43.4]} 29... Qd4+ {[%clk 0:00:41.1]} 30. Qxd4 {[%clk 0:00:37.1]}
30... cxd4 {[%clk 0:00:41]} 31. Bb4 {[%clk 0:00:31]} 31... Ba6 {[%clk 0:00:35]}
32. Bd2 {[%clk 0:00:30.1]} 32... Bb6 {[%clk 0:00:31.9]} 33. Kf2 {[%clk
0:00:24.2]} 33... d3+ {[%clk 0:00:31.3]} 34. Kg3 {[%clk 0:00:24.8]} 34... Bc7+
{[%clk 0:00:28.9]} 35. Kf2 {[%clk 0:00:23.3]} 35... Bb6+ {[%clk 0:00:27.9]} 36.
Kg3 {[%clk 0:00:19]} 36... Kf7 {[%clk 0:00:25.7]} 37. b4 {[%clk 0:00:17]} 37...
Bb7 {[%clk 0:00:23.6]} 38. a4 {[%clk 0:00:14.3]} 38... Bd4 {[%clk 0:00:18.7]}
39. Kf4 {[%clk 0:00:12.5]} 39... a6 {[%clk 0:00:16.8]} 40. b5 {[%clk 0:00:08.2]}
40... axb5 {[%clk 0:00:16]} 41. axb5 {[%clk 0:00:09.1]} 41... Bd5 {[%clk
0:00:15.1]} 42. b6 {[%clk 0:00:06.8]} 42... Bxb6 {[%clk 0:00:14.1]} 43. Ke5
{[%clk 0:00:07.5]} 43... Bb7 {[%clk 0:00:12.1]} 44. Kd6 {[%clk 0:00:05.8]} 44...
Kf8 {[%clk 0:00:07.4]} 45. Kd7 {[%clk 0:00:03.3]} 45... Bf2 {[%clk 0:00:05.2]}
46. Ra1 {[%clk 0:00:02.3]} 46... Bd5 {[%clk 0:00:04.5]} 47. Kd6 {[%clk
0:00:01.7]} 47... Bc4 {[%clk 0:00:02.9]} 48. Ke5 {[%clk 0:00:01.8]} 48... Bc5
{[%clk 0:00:02.3]} 49. Ra8+ {[%clk 0:00:02.1]} 49... Kf7 {[%clk 0:00:02.6]} 50.
Rd8 {[%clk 0:00:02.8]} 50... Be7 {[%clk 0:00:02.3]} 51. Rc8 {[%clk 0:00:02.9]}
51... Bf6+ {[%clk 0:00:02]} 52. Kf4 {[%clk 0:00:02.7]} 52... Ba6 {[%clk
0:00:02.3]} 53. Ke3 {[%clk 0:00:02.2]} 53... Be7 {[%clk 0:00:02.3]} 54. Rc7
{[%clk 0:00:02.3]} 54... Bb5 {[%clk 0:00:02.2]} 55. Rc3 {[%clk 0:00:02.1]} 55...
Ke6 {[%clk 0:00:02.3]} 56. Rxd3 {[%clk 0:00:02.3]} 56... Bxd3 {[%clk 0:00:02.8]}
57. Kxd3 {[%clk 0:00:03.2]} 57... Kf5 {[%clk 0:00:03.1]} 58. Kxc2 {[%clk
0:00:03.6]} 58... Kg6 {[%clk 0:00:03.8]} 59. Kd3 {[%clk 0:00:03.1]} 59... Kf7
{[%clk 0:00:04.7]} 60. Ke2 {[%clk 0:00:03.8]} 60... Bf8 {[%clk 0:00:05.3]} 61.
Kf2 {[%clk 0:00:04.7]} 61... Be7 {[%clk 0:00:06.2]} 62. g3 {[%clk 0:00:05.6]}
62... g6 {[%clk 0:00:07]} 63. Be3 {[%clk 0:00:06.5]} 63... h5 {[%clk 0:00:07.6]}
64. h4 {[%clk 0:00:07.4]} 64... Bf6 {[%clk 0:00:08.2]} 65. Kg2 {[%clk 0:00:08]}
65... Bg7 {[%clk 0:00:08.6]} 66. Bf4 {[%clk 0:00:08.7]} 66... Ke6 {[%clk
0:00:09.5]} 67. Kh3 {[%clk 0:00:09.3]} 67... Kf5 {[%clk 0:00:09.9]} 68. Bg5
{[%clk 0:00:09.6]} 68... Be5 {[%clk 0:00:09.7]} 69. g4+ {[%clk 0:00:09.9]} 69...
Ke6 {[%clk 0:00:09.9]} 70. Kg2 {[%clk 0:00:09.2]} 70... Bg7 {[%clk 0:00:09.9]}
71. Kf2 {[%clk 0:00:09.4]} 71... Bd4+ {[%clk 0:00:10.4]} 72. Ke2 {[%clk
0:00:09.2]} 72... Be5 {[%clk 0:00:10.6]} 73. Ke3 {[%clk 0:00:09.5]} 73... Kd5
{[%clk 0:00:10.9]} 74. f4 {[%clk 0:00:09.7]} 74... Bd4+ {[%clk 0:00:11.2]} 75.
Kf3 {[%clk 0:00:10.3]} 75... hxg4+ {[%clk 0:00:11.3]} 76. Kxg4 {[%clk
0:00:11.2]} 76... Ke4 {[%clk 0:00:12.2]} 77. h5 {[%clk 0:00:10.9]} 77... gxh5+
{[%clk 0:00:13.1]} 78. Kxh5 {[%clk 0:00:11.4]} 78... Kf5 {[%clk 0:00:14]} 79.
Kh4 {[%clk 0:00:11.9]} 79... Be3 {[%clk 0:00:14]} 80. Kh3 {[%clk 0:00:12.6]}
80... Bxf4 {[%clk 0:00:14.9]} 1/2-1/2

[Event "*** Titled Tuesday Blitz"]
[Site "Chess.com"]
[Date "2021.02.02"]
[Round "8"]
[White "Kretov_Evgenij"]
[Black "Zmeeed63"]
[Result "0-1"]
[WhiteElo "2544"]
[BlackElo "2400"]
[TimeControl "180+1"]
[EndTime "11:31:47 PST"]
[Termination "Zmeeed63 won by resignation"]

1. d4 {[%clk 0:03:00.9]} 1... d5 {[%clk 0:03:00]} 2. c4 {[%clk 0:03:00.9]} 2...
e6 {[%clk 0:03:00.3]} 3. Nc3 {[%clk 0:03:00.9]} 3... c6 {[%clk 0:03:00.7]} 4. e3
{[%clk 0:03:00.6]} 4... Nf6 {[%clk 0:03:00.8]} 5. Nf3 {[%clk 0:03:00.1]} 5...
Nbd7 {[%clk 0:03:01.2]} 6. Bd3 {[%clk 0:02:59.5]} 6... dxc4 {[%clk 0:03:01.6]}
7. Bxc4 {[%clk 0:02:59.5]} 7... b5 {[%clk 0:03:02.5]} 8. Be2 {[%clk 0:02:59.3]}
8... Bb7 {[%clk 0:03:03.1]} 9. O-O {[%clk 0:02:58.9]} 9... a6 {[%clk 0:03:03.4]}
10. e4 {[%clk 0:02:58.8]} 10... c5 {[%clk 0:03:01.2]} 11. e5 {[%clk 0:02:58.9]}
11... Nd5 {[%clk 0:03:00.3]} 12. Ne4 {[%clk 0:02:56.4]} 12... cxd4 {[%clk
0:02:58.1]} 13. Bg5 {[%clk 0:02:50.3]} 13... Qb8 {[%clk 0:02:54.2]} 14. a4
{[%clk 0:02:48.2]} 14... b4 {[%clk 0:02:50.9]} 15. Qxd4 {[%clk 0:02:47.2]} 15...
h6 {[%clk 0:02:45.9]} 16. Bh4 {[%clk 0:02:46.1]} 16... Qa7 {[%clk 0:02:22.5]}
17. Qd2 {[%clk 0:02:40.9]} 17... Nc5 {[%clk 0:02:13.7]} 18. Ng3 {[%clk
0:02:17.2]} 18... g5 {[%clk 0:01:34.3]} 19. Nxg5 {[%clk 0:02:16.9]} 19... hxg5
{[%clk 0:01:35.2]} 20. Bxg5 {[%clk 0:02:17.2]} 20... Nb3 {[%clk 0:01:34]} 21.
Qc2 {[%clk 0:01:21.2]} 21... Nxa1 {[%clk 0:01:32.7]} 22. Rxa1 {[%clk 0:01:21.4]}
22... Be7 {[%clk 0:01:08.7]} 23. Bd2 {[%clk 0:01:20.7]} 23... Rc8 {[%clk
0:01:02.1]} 24. Qb3 {[%clk 0:01:19.2]} 24... Qd4 {[%clk 0:00:53.7]} 25. Be1
{[%clk 0:01:19]} 25... Qxe5 {[%clk 0:00:46.4]} 26. Bf1 {[%clk 0:01:13]} 26...
Nf4 {[%clk 0:00:37.8]} 27. Bxb4 {[%clk 0:01:10.7]} 27... Qd5 {[%clk 0:00:33.3]}
28. Qa3 {[%clk 0:01:02.5]} 28... Bxb4 {[%clk 0:00:12]} 29. Qxb4 {[%clk
0:01:02.5]} 29... Nxg2 {[%clk 0:00:11.5]} 30. Rd1 {[%clk 0:00:56]} 30... Qxd1
{[%clk 0:00:09]} 31. Qxb7 {[%clk 0:00:55.2]} 31... Qd7 {[%clk 0:00:05]} 32. Qxa6
{[%clk 0:00:54.6]} 32... Rc6 {[%clk 0:00:02.6]} 33. Qa8+ {[%clk 0:00:52.6]}
33... Qc8 {[%clk 0:00:02.5]} 34. Qxc8+ {[%clk 0:00:50.6]} 34... Rxc8 {[%clk
0:00:03.4]} 35. Kxg2 {[%clk 0:00:50.3]} 35... Ke7 {[%clk 0:00:03.9]} 36. b4
{[%clk 0:00:49.5]} 36... Rb8 {[%clk 0:00:04.6]} 37. b5 {[%clk 0:00:49.1]} 37...
Rh4 {[%clk 0:00:05]} 38. a5 {[%clk 0:00:48.4]} 38... Rb4 {[%clk 0:00:04.9]} 39.
b6 {[%clk 0:00:43.9]} 39... Ra4 {[%clk 0:00:03.3]} 40. a6 {[%clk 0:00:42.7]}
40... Rxb6 {[%clk 0:00:03.5]} 41. Kf3 {[%clk 0:00:39.2]} 41... Rb2 {[%clk
0:00:03.3]} 42. h4 {[%clk 0:00:38]} 42... Ra3+ {[%clk 0:00:03.5]} 43. Kg2 {[%clk
0:00:37.8]} 43... Rb4 {[%clk 0:00:03.6]} 44. h5 {[%clk 0:00:37.4]} 44... Kf6
{[%clk 0:00:04.1]} 45. Be2 {[%clk 0:00:36.4]} 45... Kg5 {[%clk 0:00:04]} 46. Kh3
{[%clk 0:00:35.4]} 46... f5 {[%clk 0:00:04.1]} 47. Kg2 {[%clk 0:00:34.7]} 47...
Rb6 {[%clk 0:00:04.1]} 48. Nf1 {[%clk 0:00:33.3]} 48... e5 {[%clk 0:00:04.5]}
49. Ne3 {[%clk 0:00:31.9]} 49... Rbxa6 {[%clk 0:00:03.5]} 50. Bxa6 {[%clk
0:00:31]} 50... Rxa6 {[%clk 0:00:04.4]} 51. Nc4 {[%clk 0:00:31.1]} 51... Re6
{[%clk 0:00:03.7]} 52. Kf3 {[%clk 0:00:28.1]} 52... Kxh5 {[%clk 0:00:03.6]} 53.
Ke3 {[%clk 0:00:28.4]} 53... Kg5 {[%clk 0:00:03.8]} 54. f3 {[%clk 0:00:27.1]}
54... Kf6 {[%clk 0:00:04.2]} 55. Nd2 {[%clk 0:00:25.8]} 55... Rc6 {[%clk
0:00:04.2]} 56. Nf1 {[%clk 0:00:25.4]} 56... Ra6 {[%clk 0:00:04.5]} 57. Nd2
{[%clk 0:00:25.2]} 57... Ra3+ {[%clk 0:00:05.4]} 58. Ke2 {[%clk 0:00:25.6]}
58... Ra2 {[%clk 0:00:05.9]} 59. Ke3 {[%clk 0:00:25.6]} 59... Kg5 {[%clk
0:00:06.8]} 60. Nc4 {[%clk 0:00:24.3]} 60... Ra4 {[%clk 0:00:07.2]} 61. Nxe5
{[%clk 0:00:23.8]} 61... Ra3+ {[%clk 0:00:06.9]} 62. Nd3 {[%clk 0:00:23.2]}
62... f4+ {[%clk 0:00:05.4]} 63. Ke4 {[%clk 0:00:23.1]} 63... Ra4+ {[%clk
0:00:05.4]} 64. Ke5 {[%clk 0:00:22.9]} 64... Ra5+ {[%clk 0:00:05.7]} 65. Ke4
{[%clk 0:00:22.9]} 65... Ra8 {[%clk 0:00:06]} 66. Ke5 {[%clk 0:00:17.9]} 66...
Re8+ {[%clk 0:00:05.8]} 67. Kd4 {[%clk 0:00:18.3]} 67... Kf5 {[%clk 0:00:04.7]}
68. Nb4 {[%clk 0:00:15]} 68... Re3 {[%clk 0:00:04.7]} 69. Nc6 {[%clk 0:00:15.2]}
69... Rxf3 {[%clk 0:00:04.6]} 70. Ne7+ {[%clk 0:00:15.4]} 70... Kg4 {[%clk
0:00:04.3]} 71. Nd5 {[%clk 0:00:15.5]} 71... Rf1 {[%clk 0:00:04.3]} 72. Ke4
{[%clk 0:00:15.5]} 72... Re1+ {[%clk 0:00:04.1]} 73. Kd3 {[%clk 0:00:15.6]}
73... Kg3 {[%clk 0:00:03.6]} 74. Nf6 {[%clk 0:00:15.2]} 74... f3 {[%clk
0:00:03.1]} 75. Nh5+ {[%clk 0:00:15.5]} 75... Kg2 {[%clk 0:00:03.2]} 76. Nf4+
{[%clk 0:00:15.7]} 76... Kg3 {[%clk 0:00:03.6]} 77. Nh5+ {[%clk 0:00:15.9]}
77... Kg4 {[%clk 0:00:03.9]} 78. Nf6+ {[%clk 0:00:16.1]} 78... Kf5 {[%clk
0:00:04.3]} 79. Nh5 {[%clk 0:00:15.4]} 79... f2 {[%clk 0:00:04.5]} 80. Ng3+
{[%clk 0:00:15.7]} 80... Kg4 {[%clk 0:00:04.8]} 81. Ne4 {[%clk 0:00:15.1]} 81...
f1=Q+ {[%clk 0:00:04.8]} 82. Kd4 {[%clk 0:00:15.5]} 82... Rxe4+ {[%clk
0:00:05.1]} 83. Kxe4 {[%clk 0:00:15.4]} 83... Qf4+ {[%clk 0:00:06]} 0-1